{"text_format":"1","workbook":"xlsx","n_sheets":4,"sheets":["بيانات اساسية","كشف","ورقة1","غياب شهري"],"not_rendered":{"charts":0,"images":0,"macros":1,"external_links":0,"defined_names":17,"comments":0,"pivot_tables":0},"unopened":[],"bounds":{"document_bytes":16777216,"sheet_cells":100000,"rows_first":2000,"rows_last":500,"rows_between":2000,"halvings":0,"cell_chars":16384,"cell_head_chars":4096},"cells_cut":0,"cells_raw":0,"read":"whole","date_system":"1900"}

{"sheet":"بيانات اساسية","index":0,"n_rows":54,"n_cols":2,"rows_kept":54,"cut":false,"hidden":false,"merged":[[0,0,2,0]]}
["الرقم","اسماء المعلمين"]
[null,"عدد طلاب الشعبة "]
[null,{"$f":"COUNTA(B4:B68)","v":51}]
[null,"س 1"]
[null,"س 2"]
[null,"س 3"]
[null,"س 4"]
[null,"س 5"]
[null,"س 6"]
[null,"س 7"]
[null,"س 8"]
[null,"س 9"]
[null,"س 10"]
[null,"س 11"]
[null,"س 12"]
[null,"س 13"]
[null,"س 14"]
[null,"س 15"]
[null,"س 16"]
[null,"س 17"]
[null,"س 18"]
[null,"س 19"]
[null,"س 20"]
[null,"س 21"]
[null,"س 22"]
[null,"س 23"]
[null,"س 24"]
[null,"س 25"]
[null,"س 26"]
[null,"س 27"]
[null,"س 28"]
[null,"س 29"]
[null,"س 30"]
[null,"س 31"]
[null,"س 32"]
[null,"س 33"]
[null,"س 34"]
[null,"س 35"]
[null,"س 36"]
[null,"س 37"]
[null,"س 38"]
[null,"س 39"]
[null,"س 40"]
[null,"س 41"]
[null,"س 42"]
[null,"س 43"]
[null,"س 44"]
[null,"س 45"]
[null,"س 46"]
[null,"س 47"]
[null,"س 48"]
[null,"س 49"]
[null,"س 50"]
[null,"س 51"]

{"sheet":"كشف","index":1,"n_rows":72,"n_cols":50,"rows_kept":72,"cut":false,"hidden":false,"merged":[[4,39,4,42],[0,2,0,38],[1,2,1,23],[4,2,6,2],[4,3,6,3],[2,29,2,34],[1,25,1,28],[2,25,2,28],[3,25,3,28],[1,29,1,34],[3,10,3,13],[3,29,3,34],[4,4,4,34],[4,35,4,38]]}
[null,null,null,null,null,null,null,null,null,null,null,null,null,null,null,null,null,null,null,null,null,null,null,null,null,null,null,null,null,null,null,null,null,null,null,null,null,null,null,null,null,null,null,null,null,null,1,"كانون الثاني",2022,"عرضية "]
[null,null,null,null,null,null,null,null,null,null,null,null,null,null,null,null,null,null,null,null,null,null,null,null,null,"أسماء المعلمين",null,null,null,"اسماء المعلمين",null,null,null,null,null,null,null,null,null,null,null,null,null,null,null,null,2,"شباط",2023,"مرضية "]
[null,null,null,null,null,null,null,null,null,null,null,null,null,null,null,null,null,null,null,null,null,null,null,null,null,"الشهر ","الشهر",null,null,"أيار",null,null,null,null,null,null,null,null,null,null,null,null,null,null,null,null,3,"آذار",2024,"سنوية "]
[null,null,null,null,null,null,null,null,null,null,null,null,null,null,null,null,null,null,null,null,null,null,null,null,null,"السنة ","السنة",null,null,2024,null,null,null,null,null,null,null,null,null,null,null,null,null,null,null,null,4,"نيسان",2025,"عدم صرف"]
[null,null,"ت","الاسم ",null,null,null,null,null,null,null,null,null,null,null,null,null,null,null,null,null,null,null,null,null,null,null,null,null,null,null,null,null,null,null,"المجموع الاجازات ",null,null,null,"العقوبات ",null,null,null,null,null,null,5,"أيار",2026,"تنبيه"]
[null,null,null,null,{"$f":"IF(E7=\"\",\"\",INDEX({\"السبت\";\"الأحد\";\"الإثنين\";\"الثلاثاء\";\"الأربعاء\";\"الخميس\";\"الجمعة\"},WEEKDAY(E7,16)))","v":"الأربعاء"},{"$f":"IF(F7=\"\",\"\",INDEX({\"السبت\";\"الأحد\";\"الإثنين\";\"الثلاثاء\";\"الأربعاء\";\"الخميس\";\"الجمعة\"},WEEKDAY(F7,16)))","v":"الخميس"},{"$f":"IF(G7=\"\",\"\",INDEX({\"السبت\";\"الأحد\";\"الإثنين\";\"الثلاثاء\";\"الأربعاء\";\"الخميس\";\"الجمعة\"},WEEKDAY(G7,16)))","v":"الجمعة"},{"$f":"IF(H7=\"\",\"\",INDEX({\"السبت\";\"الأحد\";\"الإثنين\";\"الثلاثاء\";\"الأربعاء\";\"الخميس\";\"الجمعة\"},WEEKDAY(H7,16)))","v":"السبت"},{"$f":"IF(I7=\"\",\"\",INDEX({\"السبت\";\"الأحد\";\"الإثنين\";\"الثلاثاء\";\"الأربعاء\";\"الخميس\";\"الجمعة\"},WEEKDAY(I7,16)))","v":"الأحد"},{"$f":"IF(J7=\"\",\"\",INDEX({\"السبت\";\"الأحد\";\"الإثنين\";\"الثلاثاء\";\"الأربعاء\";\"الخميس\";\"الجمعة\"},WEEKDAY(J7,16)))","v":"الإثنين"},{"$f":"IF(K7=\"\",\"\",INDEX({\"السبت\";\"الأحد\";\"الإثنين\";\"الثلاثاء\";\"الأربعاء\";\"الخميس\";\"الجمعة\"},WEEKDAY(K7,16)))","v":"الثلاثاء"},{"$f":"IF(L7=\"\",\"\",INDEX({\"السبت\";\"الأحد\";\"الإثنين\";\"الثلاثاء\";\"الأربعاء\";\"الخميس\";\"الجمعة\"},WEEKDAY(L7,16)))","v":"الأربعاء"},{"$f":"IF(M7=\"\",\"\",INDEX({\"السبت\";\"الأحد\";\"الإثنين\";\"الثلاثاء\";\"الأربعاء\";\"الخميس\";\"الجمعة\"},WEEKDAY(M7,16)))","v":"الخميس"},{"$f":"IF(N7=\"\",\"\",INDEX({\"السبت\";\"الأحد\";\"الإثنين\";\"الثلاثاء\";\"الأربعاء\";\"الخميس\";\"الجمعة\"},WEEKDAY(N7,16)))","v":"الجمعة"},{"$f":"IF(O7=\"\",\"\",INDEX({\"السبت\";\"الأحد\";\"الإثنين\";\"الثلاثاء\";\"الأربعاء\";\"الخميس\";\"الجمعة\"},WEEKDAY(O7,16)))","v":"السبت"},{"$f":"IF(P7=\"\",\"\",INDEX({\"السبت\";\"الأحد\";\"الإثنين\";\"الثلاثاء\";\"الأربعاء\";\"الخميس\";\"الجمعة\"},WEEKDAY(P7,16)))","v":"الأحد"},{"$f":"IF(Q7=\"\",\"\",INDEX({\"السبت\";\"الأحد\";\"الإثنين\";\"الثلاثاء\";\"الأربعاء\";\"الخميس\";\"الجمعة\"},WEEKDAY(Q7,16)))","v":"الإثنين"},{"$f":"IF(R7=\"\",\"\",INDEX({\"السبت\";\"الأحد\";\"الإثنين\";\"الثلاثاء\";\"الأربعاء\";\"الخميس\";\"الجمعة\"},WEEKDAY(R7,16)))","v":"الثلاثاء"},{"$f":"IF(S7=\"\",\"\",INDEX({\"السبت\";\"الأحد\";\"الإثنين\";\"الثلاثاء\";\"الأربعاء\";\"الخميس\";\"الجمعة\"},WEEKDAY(S7,16)))","v":"الأربعاء"},{"$f":"IF(T7=\"\",\"\",INDEX({\"السبت\";\"الأحد\";\"الإثنين\";\"الثلاثاء\";\"الأربعاء\";\"الخميس\";\"الجمعة\"},WEEKDAY(T7,16)))","v":"الخميس"},{"$f":"IF(U7=\"\",\"\",INDEX({\"السبت\";\"الأحد\";\"الإثنين\";\"الثلاثاء\";\"الأربعاء\";\"الخميس\";\"الجمعة\"},WEEKDAY(U7,16)))","v":"الجمعة"},{"$f":"IF(V7=\"\",\"\",INDEX({\"السبت\";\"الأحد\";\"الإثنين\";\"الثلاثاء\";\"الأربعاء\";\"الخميس\";\"الجمعة\"},WEEKDAY(V7,16)))","v":"السبت"},{"$f":"IF(W7=\"\",\"\",INDEX({\"السبت\";\"الأحد\";\"الإثنين\";\"الثلاثاء\";\"الأربعاء\";\"الخميس\";\"الجمعة\"},WEEKDAY(W7,16)))","v":"الأحد"},{"$f":"IF(X7=\"\",\"\",INDEX({\"السبت\";\"الأحد\";\"الإثنين\";\"الثلاثاء\";\"الأربعاء\";\"الخميس\";\"الجمعة\"},WEEKDAY(X7,16)))","v":"الإثنين"},{"$f":"IF(Y7=\"\",\"\",INDEX({\"السبت\";\"الأحد\";\"الإثنين\";\"الثلاثاء\";\"الأربعاء\";\"الخميس\";\"الجمعة\"},WEEKDAY(Y7,16)))","v":"الثلاثاء"},{"$f":"IF(Z7=\"\",\"\",INDEX({\"السبت\";\"الأحد\";\"الإثنين\";\"الثلاثاء\";\"الأربعاء\";\"الخميس\";\"الجمعة\"},WEEKDAY(Z7,16)))","v":"الأربعاء"},{"$f":"IF(AA7=\"\",\"\",INDEX({\"السبت\";\"الأحد\";\"الإثنين\";\"الثلاثاء\";\"الأربعاء\";\"الخميس\";\"الجمعة\"},WEEKDAY(AA7,16)))","v":"الخميس"},{"$f":"IF(AB7=\"\",\"\",INDEX({\"السبت\";\"الأحد\";\"الإثنين\";\"الثلاثاء\";\"الأربعاء\";\"الخميس\";\"الجمعة\"},WEEKDAY(AB7,16)))","v":"الجمعة"},{"$f":"IF(AC7=\"\",\"\",INDEX({\"السبت\";\"الأحد\";\"الإثنين\";\"الثلاثاء\";\"الأربعاء\";\"الخميس\";\"الجمعة\"},WEEKDAY(AC7,16)))","v":"السبت"},{"$f":"IF(AD7=\"\",\"\",INDEX({\"السبت\";\"الأحد\";\"الإثنين\";\"الثلاثاء\";\"الأربعاء\";\"الخميس\";\"الجمعة\"},WEEKDAY(AD7,16)))","v":"الأحد"},{"$f":"IF(AE7=\"\",\"\",INDEX({\"السبت\";\"الأحد\";\"الإثنين\";\"الثلاثاء\";\"الأربعاء\";\"الخميس\";\"الجمعة\"},WEEKDAY(AE7,16)))","v":"الإثنين"},{"$f":"IF(AF7=\"\",\"\",INDEX({\"السبت\";\"الأحد\";\"الإثنين\";\"الثلاثاء\";\"الأربعاء\";\"الخميس\";\"الجمعة\"},WEEKDAY(AF7,16)))","v":"الثلاثاء"},{"$f":"IF(AG7=\"\",\"\",INDEX({\"السبت\";\"الأحد\";\"الإثنين\";\"الثلاثاء\";\"الأربعاء\";\"الخميس\";\"الجمعة\"},WEEKDAY(AG7,16)))","v":"الأربعاء"},{"$f":"IF(AH7=\"\",\"\",INDEX({\"السبت\";\"الأحد\";\"الإثنين\";\"الثلاثاء\";\"الأربعاء\";\"الخميس\";\"الجمعة\"},WEEKDAY(AH7,16)))","v":"الخميس"},{"$f":"IF(AI7=\"\",\"\",INDEX({\"السبت\";\"الأحد\";\"الإثنين\";\"الثلاثاء\";\"الأربعاء\";\"الخميس\";\"الجمعة\"},WEEKDAY(AI7,16)))","v":"الجمعة"},"عرضية","مرضية ","عدم صرف","سنوية","تنبيه","اذار","حسم","مغادرات",null,null,null,6,"حزيران",null,"انذار"]
[null,null,null,null,{"$f":"IF(COLUMNS($E$1:E1)>DAY(DATE($AD$4,INDEX(ROW($A$1:$A$12),MATCH($AD$3,{\"كانون الثاني\";\"شباط\";\"آذار\";\"نيسان\";\"أيار\";\"حزيران\";\"تموز\";\"آب\";\"أيلول\";\"تشرين الأول\";\"تشرين الثاني\";\"كانون الأول\"},0)),COLUMNS($E$1:E1))),\"\",DATE($AD$4,INDEX(ROW($A$1:$A$12),MATCH($AD$3,{\"كانون الثاني\";\"شباط\";\"آذار\";\"نيسان\";\"أيار\";\"حزيران\";\"تموز\";\"آب\";\"أيلول\";\"تشرين الأول\";\"تشرين الثاني\";\"كانون الأول\"},0)),COLUMNS($E$1:E1)))","v":"2024-05-01"},{"$f":"IF(COLUMNS($E$1:F1)>DAY(DATE($AD$4,INDEX(ROW($A$1:$A$12),MATCH($AD$3,{\"كانون الثاني\";\"شباط\";\"آذار\";\"نيسان\";\"أيار\";\"حزيران\";\"تموز\";\"آب\";\"أيلول\";\"تشرين الأول\";\"تشرين الثاني\";\"كانون الأول\"},0)),COLUMNS($E$1:F1))),\"\",DATE($AD$4,INDEX(ROW($A$1:$A$12),MATCH($AD$3,{\"كانون الثاني\";\"شباط\";\"آذار\";\"نيسان\";\"أيار\";\"حزيران\";\"تموز\";\"آب\";\"أيلول\";\"تشرين الأول\";\"تشرين الثاني\";\"كانون الأول\"},0)),COLUMNS($E$1:F1)))","v":"2024-05-02"},{"$f":"IF(COLUMNS($E$1:G1)>DAY(DATE($AD$4,INDEX(ROW($A$1:$A$12),MATCH($AD$3,{\"كانون الثاني\";\"شباط\";\"آذار\";\"نيسان\";\"أيار\";\"حزيران\";\"تموز\";\"آب\";\"أيلول\";\"تشرين الأول\";\"تشرين الثاني\";\"كانون الأول\"},0)),COLUMNS($E$1:G1))),\"\",DATE($AD$4,INDEX(ROW($A$1:$A$12),MATCH($AD$3,{\"كانون الثاني\";\"شباط\";\"آذار\";\"نيسان\";\"أيار\";\"حزيران\";\"تموز\";\"آب\";\"أيلول\";\"تشرين الأول\";\"تشرين الثاني\";\"كانون الأول\"},0)),COLUMNS($E$1:G1)))","v":"2024-05-03"},{"$f":"IF(COLUMNS($E$1:H1)>DAY(DATE($AD$4,INDEX(ROW($A$1:$A$12),MATCH($AD$3,{\"كانون الثاني\";\"شباط\";\"آذار\";\"نيسان\";\"أيار\";\"حزيران\";\"تموز\";\"آب\";\"أيلول\";\"تشرين الأول\";\"تشرين الثاني\";\"كانون الأول\"},0)),COLUMNS($E$1:H1))),\"\",DATE($AD$4,INDEX(ROW($A$1:$A$12),MATCH($AD$3,{\"كانون الثاني\";\"شباط\";\"آذار\";\"نيسان\";\"أيار\";\"حزيران\";\"تموز\";\"آب\";\"أيلول\";\"تشرين الأول\";\"تشرين الثاني\";\"كانون الأول\"},0)),COLUMNS($E$1:H1)))","v":"2024-05-04"},{"$f":"IF(COLUMNS($E$1:I1)>DAY(DATE($AD$4,INDEX(ROW($A$1:$A$12),MATCH($AD$3,{\"كانون الثاني\";\"شباط\";\"آذار\";\"نيسان\";\"أيار\";\"حزيران\";\"تموز\";\"آب\";\"أيلول\";\"تشرين الأول\";\"تشرين الثاني\";\"كانون الأول\"},0)),COLUMNS($E$1:I1))),\"\",DATE($AD$4,INDEX(ROW($A$1:$A$12),MATCH($AD$3,{\"كانون الثاني\";\"شباط\";\"آذار\";\"نيسان\";\"أيار\";\"حزيران\";\"تموز\";\"آب\";\"أيلول\";\"تشرين الأول\";\"تشرين الثاني\";\"كانون الأول\"},0)),COLUMNS($E$1:I1)))","v":"2024-05-05"},{"$f":"IF(COLUMNS($E$1:J1)>DAY(DATE($AD$4,INDEX(ROW($A$1:$A$12),MATCH($AD$3,{\"كانون الثاني\";\"شباط\";\"آذار\";\"نيسان\";\"أيار\";\"حزيران\";\"تموز\";\"آب\";\"أيلول\";\"تشرين الأول\";\"تشرين الثاني\";\"كانون الأول\"},0)),COLUMNS($E$1:J1))),\"\",DATE($AD$4,INDEX(ROW($A$1:$A$12),MATCH($AD$3,{\"كانون الثاني\";\"شباط\";\"آذار\";\"نيسان\";\"أيار\";\"حزيران\";\"تموز\";\"آب\";\"أيلول\";\"تشرين الأول\";\"تشرين الثاني\";\"كانون الأول\"},0)),COLUMNS($E$1:J1)))","v":"2024-05-06"},{"$f":"IF(COLUMNS($E$1:K1)>DAY(DATE($AD$4,INDEX(ROW($A$1:$A$12),MATCH($AD$3,{\"كانون الثاني\";\"شباط\";\"آذار\";\"نيسان\";\"أيار\";\"حزيران\";\"تموز\";\"آب\";\"أيلول\";\"تشرين الأول\";\"تشرين الثاني\";\"كانون الأول\"},0)),COLUMNS($E$1:K1))),\"\",DATE($AD$4,INDEX(ROW($A$1:$A$12),MATCH($AD$3,{\"كانون الثاني\";\"شباط\";\"آذار\";\"نيسان\";\"أيار\";\"حزيران\";\"تموز\";\"آب\";\"أيلول\";\"تشرين الأول\";\"تشرين الثاني\";\"كانون الأول\"},0)),COLUMNS($E$1:K1)))","v":"2024-05-07"},{"$f":"IF(COLUMNS($E$1:L1)>DAY(DATE($AD$4,INDEX(ROW($A$1:$A$12),MATCH($AD$3,{\"كانون الثاني\";\"شباط\";\"آذار\";\"نيسان\";\"أيار\";\"حزيران\";\"تموز\";\"آب\";\"أيلول\";\"تشرين الأول\";\"تشرين الثاني\";\"كانون الأول\"},0)),COLUMNS($E$1:L1))),\"\",DATE($AD$4,INDEX(ROW($A$1:$A$12),MATCH($AD$3,{\"كانون الثاني\";\"شباط\";\"آذار\";\"نيسان\";\"أيار\";\"حزيران\";\"تموز\";\"آب\";\"أيلول\";\"تشرين الأول\";\"تشرين الثاني\";\"كانون الأول\"},0)),COLUMNS($E$1:L1)))","v":"2024-05-08"},{"$f":"IF(COLUMNS($E$1:M1)>DAY(DATE($AD$4,INDEX(ROW($A$1:$A$12),MATCH($AD$3,{\"كانون الثاني\";\"شباط\";\"آذار\";\"نيسان\";\"أيار\";\"حزيران\";\"تموز\";\"آب\";\"أيلول\";\"تشرين الأول\";\"تشرين الثاني\";\"كانون الأول\"},0)),COLUMNS($E$1:M1))),\"\",DATE($AD$4,INDEX(ROW($A$1:$A$12),MATCH($AD$3,{\"كانون الثاني\";\"شباط\";\"آذار\";\"نيسان\";\"أيار\";\"حزيران\";\"تموز\";\"آب\";\"أيلول\";\"تشرين الأول\";\"تشرين الثاني\";\"كانون الأول\"},0)),COLUMNS($E$1:M1)))","v":"2024-05-09"},{"$f":"IF(COLUMNS($E$1:N1)>DAY(DATE($AD$4,INDEX(ROW($A$1:$A$12),MATCH($AD$3,{\"كانون الثاني\";\"شباط\";\"آذار\";\"نيسان\";\"أيار\";\"حزيران\";\"تموز\";\"آب\";\"أيلول\";\"تشرين الأول\";\"تشرين الثاني\";\"كانون الأول\"},0)),COLUMNS($E$1:N1))),\"\",DATE($AD$4,INDEX(ROW($A$1:$A$12),MATCH($AD$3,{\"كانون الثاني\";\"شباط\";\"آذار\";\"نيسان\";\"أيار\";\"حزيران\";\"تموز\";\"آب\";\"أيلول\";\"تشرين الأول\";\"تشرين الثاني\";\"كانون الأول\"},0)),COLUMNS($E$1:N1)))","v":"2024-05-10"},{"$f":"IF(COLUMNS($E$1:O1)>DAY(DATE($AD$4,INDEX(ROW($A$1:$A$12),MATCH($AD$3,{\"كانون الثاني\";\"شباط\";\"آذار\";\"نيسان\";\"أيار\";\"حزيران\";\"تموز\";\"آب\";\"أيلول\";\"تشرين الأول\";\"تشرين الثاني\";\"كانون الأول\"},0)),COLUMNS($E$1:O1))),\"\",DATE($AD$4,INDEX(ROW($A$1:$A$12),MATCH($AD$3,{\"كانون الثاني\";\"شباط\";\"آذار\";\"نيسان\";\"أيار\";\"حزيران\";\"تموز\";\"آب\";\"أيلول\";\"تشرين الأول\";\"تشرين الثاني\";\"كانون الأول\"},0)),COLUMNS($E$1:O1)))","v":"2024-05-11"},{"$f":"IF(COLUMNS($E$1:P1)>DAY(DATE($AD$4,INDEX(ROW($A$1:$A$12),MATCH($AD$3,{\"كانون الثاني\";\"شباط\";\"آذار\";\"نيسان\";\"أيار\";\"حزيران\";\"تموز\";\"آب\";\"أيلول\";\"تشرين الأول\";\"تشرين الثاني\";\"كانون الأول\"},0)),COLUMNS($E$1:P1))),\"\",DATE($AD$4,INDEX(ROW($A$1:$A$12),MATCH($AD$3,{\"كانون الثاني\";\"شباط\";\"آذار\";\"نيسان\";\"أيار\";\"حزيران\";\"تموز\";\"آب\";\"أيلول\";\"تشرين الأول\";\"تشرين الثاني\";\"كانون الأول\"},0)),COLUMNS($E$1:P1)))","v":"2024-05-12"},{"$f":"IF(COLUMNS($E$1:Q1)>DAY(DATE($AD$4,INDEX(ROW($A$1:$A$12),MATCH($AD$3,{\"كانون الثاني\";\"شباط\";\"آذار\";\"نيسان\";\"أيار\";\"حزيران\";\"تموز\";\"آب\";\"أيلول\";\"تشرين الأول\";\"تشرين الثاني\";\"كانون الأول\"},0)),COLUMNS($E$1:Q1))),\"\",DATE($AD$4,INDEX(ROW($A$1:$A$12),MATCH($AD$3,{\"كانون الثاني\";\"شباط\";\"آذار\";\"نيسان\";\"أيار\";\"حزيران\";\"تموز\";\"آب\";\"أيلول\";\"تشرين الأول\";\"تشرين الثاني\";\"كانون الأول\"},0)),COLUMNS($E$1:Q1)))","v":"2024-05-13"},{"$f":"IF(COLUMNS($E$1:R1)>DAY(DATE($AD$4,INDEX(ROW($A$1:$A$12),MATCH($AD$3,{\"كانون الثاني\";\"شباط\";\"آذار\";\"نيسان\";\"أيار\";\"حزيران\";\"تموز\";\"آب\";\"أيلول\";\"تشرين الأول\";\"تشرين الثاني\";\"كانون الأول\"},0)),COLUMNS($E$1:R1))),\"\",DATE($AD$4,INDEX(ROW($A$1:$A$12),MATCH($AD$3,{\"كانون الثاني\";\"شباط\";\"آذار\";\"نيسان\";\"أيار\";\"حزيران\";\"تموز\";\"آب\";\"أيلول\";\"تشرين الأول\";\"تشرين الثاني\";\"كانون الأول\"},0)),COLUMNS($E$1:R1)))","v":"2024-05-14"},{"$f":"IF(COLUMNS($E$1:S1)>DAY(DATE($AD$4,INDEX(ROW($A$1:$A$12),MATCH($AD$3,{\"كانون الثاني\";\"شباط\";\"آذار\";\"نيسان\";\"أيار\";\"حزيران\";\"تموز\";\"آب\";\"أيلول\";\"تشرين الأول\";\"تشرين الثاني\";\"كانون الأول\"},0)),COLUMNS($E$1:S1))),\"\",DATE($AD$4,INDEX(ROW($A$1:$A$12),MATCH($AD$3,{\"كانون الثاني\";\"شباط\";\"آذار\";\"نيسان\";\"أيار\";\"حزيران\";\"تموز\";\"آب\";\"أيلول\";\"تشرين الأول\";\"تشرين الثاني\";\"كانون الأول\"},0)),COLUMNS($E$1:S1)))","v":"2024-05-15"},{"$f":"IF(COLUMNS($E$1:T1)>DAY(DATE($AD$4,INDEX(ROW($A$1:$A$12),MATCH($AD$3,{\"كانون الثاني\";\"شباط\";\"آذار\";\"نيسان\";\"أيار\";\"حزيران\";\"تموز\";\"آب\";\"أيلول\";\"تشرين الأول\";\"تشرين الثاني\";\"كانون الأول\"},0)),COLUMNS($E$1:T1))),\"\",DATE($AD$4,INDEX(ROW($A$1:$A$12),MATCH($AD$3,{\"كانون الثاني\";\"شباط\";\"آذار\";\"نيسان\";\"أيار\";\"حزيران\";\"تموز\";\"آب\";\"أيلول\";\"تشرين الأول\";\"تشرين الثاني\";\"كانون الأول\"},0)),COLUMNS($E$1:T1)))","v":"2024-05-16"},{"$f":"IF(COLUMNS($E$1:U1)>DAY(DATE($AD$4,INDEX(ROW($A$1:$A$12),MATCH($AD$3,{\"كانون الثاني\";\"شباط\";\"آذار\";\"نيسان\";\"أيار\";\"حزيران\";\"تموز\";\"آب\";\"أيلول\";\"تشرين الأول\";\"تشرين الثاني\";\"كانون الأول\"},0)),COLUMNS($E$1:U1))),\"\",DATE($AD$4,INDEX(ROW($A$1:$A$12),MATCH($AD$3,{\"كانون الثاني\";\"شباط\";\"آذار\";\"نيسان\";\"أيار\";\"حزيران\";\"تموز\";\"آب\";\"أيلول\";\"تشرين الأول\";\"تشرين الثاني\";\"كانون الأول\"},0)),COLUMNS($E$1:U1)))","v":"2024-05-17"},{"$f":"IF(COLUMNS($E$1:V1)>DAY(DATE($AD$4,INDEX(ROW($A$1:$A$12),MATCH($AD$3,{\"كانون الثاني\";\"شباط\";\"آذار\";\"نيسان\";\"أيار\";\"حزيران\";\"تموز\";\"آب\";\"أيلول\";\"تشرين الأول\";\"تشرين الثاني\";\"كانون الأول\"},0)),COLUMNS($E$1:V1))),\"\",DATE($AD$4,INDEX(ROW($A$1:$A$12),MATCH($AD$3,{\"كانون الثاني\";\"شباط\";\"آذار\";\"نيسان\";\"أيار\";\"حزيران\";\"تموز\";\"آب\";\"أيلول\";\"تشرين الأول\";\"تشرين الثاني\";\"كانون الأول\"},0)),COLUMNS($E$1:V1)))","v":"2024-05-18"},{"$f":"IF(COLUMNS($E$1:W1)>DAY(DATE($AD$4,INDEX(ROW($A$1:$A$12),MATCH($AD$3,{\"كانون الثاني\";\"شباط\";\"آذار\";\"نيسان\";\"أيار\";\"حزيران\";\"تموز\";\"آب\";\"أيلول\";\"تشرين الأول\";\"تشرين الثاني\";\"كانون الأول\"},0)),COLUMNS($E$1:W1))),\"\",DATE($AD$4,INDEX(ROW($A$1:$A$12),MATCH($AD$3,{\"كانون الثاني\";\"شباط\";\"آذار\";\"نيسان\";\"أيار\";\"حزيران\";\"تموز\";\"آب\";\"أيلول\";\"تشرين الأول\";\"تشرين الثاني\";\"كانون الأول\"},0)),COLUMNS($E$1:W1)))","v":"2024-05-19"},{"$f":"IF(COLUMNS($E$1:X1)>DAY(DATE($AD$4,INDEX(ROW($A$1:$A$12),MATCH($AD$3,{\"كانون الثاني\";\"شباط\";\"آذار\";\"نيسان\";\"أيار\";\"حزيران\";\"تموز\";\"آب\";\"أيلول\";\"تشرين الأول\";\"تشرين الثاني\";\"كانون الأول\"},0)),COLUMNS($E$1:X1))),\"\",DATE($AD$4,INDEX(ROW($A$1:$A$12),MATCH($AD$3,{\"كانون الثاني\";\"شباط\";\"آذار\";\"نيسان\";\"أيار\";\"حزيران\";\"تموز\";\"آب\";\"أيلول\";\"تشرين الأول\";\"تشرين الثاني\";\"كانون الأول\"},0)),COLUMNS($E$1:X1)))","v":"2024-05-20"},{"$f":"IF(COLUMNS($E$1:Y1)>DAY(DATE($AD$4,INDEX(ROW($A$1:$A$12),MATCH($AD$3,{\"كانون الثاني\";\"شباط\";\"آذار\";\"نيسان\";\"أيار\";\"حزيران\";\"تموز\";\"آب\";\"أيلول\";\"تشرين الأول\";\"تشرين الثاني\";\"كانون الأول\"},0)),COLUMNS($E$1:Y1))),\"\",DATE($AD$4,INDEX(ROW($A$1:$A$12),MATCH($AD$3,{\"كانون الثاني\";\"شباط\";\"آذار\";\"نيسان\";\"أيار\";\"حزيران\";\"تموز\";\"آب\";\"أيلول\";\"تشرين الأول\";\"تشرين الثاني\";\"كانون الأول\"},0)),COLUMNS($E$1:Y1)))","v":"2024-05-21"},{"$f":"IF(COLUMNS($E$1:Z1)>DAY(DATE($AD$4,INDEX(ROW($A$1:$A$12),MATCH($AD$3,{\"كانون الثاني\";\"شباط\";\"آذار\";\"نيسان\";\"أيار\";\"حزيران\";\"تموز\";\"آب\";\"أيلول\";\"تشرين الأول\";\"تشرين الثاني\";\"كانون الأول\"},0)),COLUMNS($E$1:Z1))),\"\",DATE($AD$4,INDEX(ROW($A$1:$A$12),MATCH($AD$3,{\"كانون الثاني\";\"شباط\";\"آذار\";\"نيسان\";\"أيار\";\"حزيران\";\"تموز\";\"آب\";\"أيلول\";\"تشرين الأول\";\"تشرين الثاني\";\"كانون الأول\"},0)),COLUMNS($E$1:Z1)))","v":"2024-05-22"},{"$f":"IF(COLUMNS($E$1:AA1)>DAY(DATE($AD$4,INDEX(ROW($A$1:$A$12),MATCH($AD$3,{\"كانون الثاني\";\"شباط\";\"آذار\";\"نيسان\";\"أيار\";\"حزيران\";\"تموز\";\"آب\";\"أيلول\";\"تشرين الأول\";\"تشرين الثاني\";\"كانون الأول\"},0)),COLUMNS($E$1:AA1))),\"\",DATE($AD$4,INDEX(ROW($A$1:$A$12),MATCH($AD$3,{\"كانون الثاني\";\"شباط\";\"آذار\";\"نيسان\";\"أيار\";\"حزيران\";\"تموز\";\"آب\";\"أيلول\";\"تشرين الأول\";\"تشرين الثاني\";\"كانون الأول\"},0)),COLUMNS($E$1:AA1)))","v":"2024-05-23"},{"$f":"IF(COLUMNS($E$1:AB1)>DAY(DATE($AD$4,INDEX(ROW($A$1:$A$12),MATCH($AD$3,{\"كانون الثاني\";\"شباط\";\"آذار\";\"نيسان\";\"أيار\";\"حزيران\";\"تموز\";\"آب\";\"أيلول\";\"تشرين الأول\";\"تشرين الثاني\";\"كانون الأول\"},0)),COLUMNS($E$1:AB1))),\"\",DATE($AD$4,INDEX(ROW($A$1:$A$12),MATCH($AD$3,{\"كانون الثاني\";\"شباط\";\"آذار\";\"نيسان\";\"أيار\";\"حزيران\";\"تموز\";\"آب\";\"أيلول\";\"تشرين الأول\";\"تشرين الثاني\";\"كانون الأول\"},0)),COLUMNS($E$1:AB1)))","v":"2024-05-24"},{"$f":"IF(COLUMNS($E$1:AC1)>DAY(DATE($AD$4,INDEX(ROW($A$1:$A$12),MATCH($AD$3,{\"كانون الثاني\";\"شباط\";\"آذار\";\"نيسان\";\"أيار\";\"حزيران\";\"تموز\";\"آب\";\"أيلول\";\"تشرين الأول\";\"تشرين الثاني\";\"كانون الأول\"},0)),COLUMNS($E$1:AC1))),\"\",DATE($AD$4,INDEX(ROW($A$1:$A$12),MATCH($AD$3,{\"كانون الثاني\";\"شباط\";\"آذار\";\"نيسان\";\"أيار\";\"حزيران\";\"تموز\";\"آب\";\"أيلول\";\"تشرين الأول\";\"تشرين الثاني\";\"كانون الأول\"},0)),COLUMNS($E$1:AC1)))","v":"2024-05-25"},{"$f":"IF(COLUMNS($E$1:AD1)>DAY(DATE($AD$4,INDEX(ROW($A$1:$A$12),MATCH($AD$3,{\"كانون الثاني\";\"شباط\";\"آذار\";\"نيسان\";\"أيار\";\"حزيران\";\"تموز\";\"آب\";\"أيلول\";\"تشرين الأول\";\"تشرين الثاني\";\"كانون الأول\"},0)),COLUMNS($E$1:AD1))),\"\",DATE($AD$4,INDEX(ROW($A$1:$A$12),MATCH($AD$3,{\"كانون الثاني\";\"شباط\";\"آذار\";\"نيسان\";\"أيار\";\"حزيران\";\"تموز\";\"آب\";\"أيلول\";\"تشرين الأول\";\"تشرين الثاني\";\"كانون الأول\"},0)),COLUMNS($E$1:AD1)))","v":"2024-05-26"},{"$f":"IF(COLUMNS($E$1:AE1)>DAY(DATE($AD$4,INDEX(ROW($A$1:$A$12),MATCH($AD$3,{\"كانون الثاني\";\"شباط\";\"آذار\";\"نيسان\";\"أيار\";\"حزيران\";\"تموز\";\"آب\";\"أيلول\";\"تشرين الأول\";\"تشرين الثاني\";\"كانون الأول\"},0)),COLUMNS($E$1:AE1))),\"\",DATE($AD$4,INDEX(ROW($A$1:$A$12),MATCH($AD$3,{\"كانون الثاني\";\"شباط\";\"آذار\";\"نيسان\";\"أيار\";\"حزيران\";\"تموز\";\"آب\";\"أيلول\";\"تشرين الأول\";\"تشرين الثاني\";\"كانون الأول\"},0)),COLUMNS($E$1:AE1)))","v":"2024-05-27"},{"$f":"IF(COLUMNS($E$1:AF1)>DAY(DATE($AD$4,INDEX(ROW($A$1:$A$12),MATCH($AD$3,{\"كانون الثاني\";\"شباط\";\"آذار\";\"نيسان\";\"أيار\";\"حزيران\";\"تموز\";\"آب\";\"أيلول\";\"تشرين الأول\";\"تشرين الثاني\";\"كانون الأول\"},0)),COLUMNS($E$1:AF1))),\"\",DATE($AD$4,INDEX(ROW($A$1:$A$12),MATCH($AD$3,{\"كانون الثاني\";\"شباط\";\"آذار\";\"نيسان\";\"أيار\";\"حزيران\";\"تموز\";\"آب\";\"أيلول\";\"تشرين الأول\";\"تشرين الثاني\";\"كانون الأول\"},0)),COLUMNS($E$1:AF1)))","v":"2024-05-28"},{"$f":"IF(COLUMNS($E$1:AG1)>DAY(DATE($AD$4,INDEX(ROW($A$1:$A$12),MATCH($AD$3,{\"كانون الثاني\";\"شباط\";\"آذار\";\"نيسان\";\"أيار\";\"حزيران\";\"تموز\";\"آب\";\"أيلول\";\"تشرين الأول\";\"تشرين الثاني\";\"كانون الأول\"},0)),COLUMNS($E$1:AG1))),\"\",DATE($AD$4,INDEX(ROW($A$1:$A$12),MATCH($AD$3,{\"كانون الثاني\";\"شباط\";\"آذار\";\"نيسان\";\"أيار\";\"حزيران\";\"تموز\";\"آب\";\"أيلول\";\"تشرين الأول\";\"تشرين الثاني\";\"كانون الأول\"},0)),COLUMNS($E$1:AG1)))","v":"2024-05-29"},{"$f":"IF(COLUMNS($E$1:AH1)>DAY(DATE($AD$4,INDEX(ROW($A$1:$A$12),MATCH($AD$3,{\"كانون الثاني\";\"شباط\";\"آذار\";\"نيسان\";\"أيار\";\"حزيران\";\"تموز\";\"آب\";\"أيلول\";\"تشرين الأول\";\"تشرين الثاني\";\"كانون الأول\"},0)),COLUMNS($E$1:AH1))),\"\",DATE($AD$4,INDEX(ROW($A$1:$A$12),MATCH($AD$3,{\"كانون الثاني\";\"شباط\";\"آذار\";\"نيسان\";\"أيار\";\"حزيران\";\"تموز\";\"آب\";\"أيلول\";\"تشرين الأول\";\"تشرين الثاني\";\"كانون الأول\"},0)),COLUMNS($E$1:AH1)))","v":"2024-05-30"},{"$f":"IF(COLUMNS($E$1:AI1)>DAY(DATE($AD$4,INDEX(ROW($A$1:$A$12),MATCH($AD$3,{\"كانون الثاني\";\"شباط\";\"آذار\";\"نيسان\";\"أيار\";\"حزيران\";\"تموز\";\"آب\";\"أيلول\";\"تشرين الأول\";\"تشرين الثاني\";\"كانون الأول\"},0)),COLUMNS($E$1:AI1))),\"\",DATE($AD$4,INDEX(ROW($A$1:$A$12),MATCH($AD$3,{\"كانون الثاني\";\"شباط\";\"آذار\";\"نيسان\";\"أيار\";\"حزيران\";\"تموز\";\"آب\";\"أيلول\";\"تشرين الأول\";\"تشرين الثاني\";\"كانون الأول\"},0)),COLUMNS($E$1:AI1)))","v":"2024-05-31"},"عرضية","مرضية ","عدم صرف","سنوية","تنبيه","اذار","حسم ","مغادرات",null,null,null,7,"تموز",null,"حسم من الراتب"]
[null,null,{"$f":"ROW()-7","v":1},"س 1",null,null,null,null,null,null,null,null,null,null,null,null,null,null,null,null,null,null,null,null,null,null,null,null,null,null,null,null,null,null,null,{"$f":"COUNTIF(E8:AI8,\"*\"&AJ$7&\"*\")","v":0},{"$f":"COUNTIF(E8:AI8,\"*\"&AK$7&\"*\")","v":0},{"$f":"COUNTIF(F8:AJ8,\"*\"&AL$7&\"*\")","v":0},{"$f":"COUNTIF(F8:AJ8,\"*\"&AM$7&\"*\")","v":0},{"$f":"COUNTIF(H8:AM8,\"*\"&AN$7&\"*\")","v":0},{"$f":"COUNTIF(H8:AM8,\"*\"&AO$7&\"*\")","v":0},{"$f":"COUNTIF(I8:AN8,\"*\"&AP$7&\"*\")","v":0},0,null,null,null,8,"آب"]
[null,null,{"$f":"ROW()-7","v":2},"س 2",null,null,null,null,"عدم صرف",null,null,null,null,null,null,null,null,null,null,null,null,"تنبيه",null,null,null,null,null,null,null,null,null,null,null,null,null,{"$f":"COUNTIF(E9:AI9,\"*\"&AJ$7&\"*\")","v":0},{"$f":"COUNTIF(E9:AI9,\"*\"&AK$7&\"*\")","v":0},{"$f":"COUNTIF(F9:AJ9,\"*\"&AL$7&\"*\")","v":1},0,1,0,{"$f":"COUNTIF(I9:AN9,\"*\"&AP$7&\"*\")","v":0},{"$f":"COUNTIF(J9:AO9,\"*\"&AQ$7&\"*\")","v":0},null,null,null,9,"أيلول"]
[null,null,3,"س 3",null,null,null,null,null,null,null,null,null,null,null,null,null,null,null,null,null,null,null,null,null,null,null,null,null,null,null,null,null,null,null,0,0,0,0,0,0,0,0,null,null,null,10,"تشرين الأول"]
[null,null,4,"س 4",null,null,null,null,null,null,null,null,null,null,null,null,null,null,null,null,null,null,null,null,null,null,null,null,null,null,null,null,null,null,null,0,0,0,0,0,0,0,0,null,null,null,11,"تشرين الثاني"]
[null,null,5,"س 5",null,null,null,null,null,null,null,null,null,null,null,null,null,null,null,null,null,null,null,null,null,null,null,null,null,null,null,null,null,null,null,0,0,0,0,0,0,0,0,null,null,null,12,"كانون الأول"]
[null,null,6,"س 6",null,null,null,null,null,null,null,null,null,null,null,null,null,null,null,null,null,null,null,null,null,null,null,null,null,null,null,null,null,null,null,0,0,0,0,0,0,0,0,null,null,null,13]
[null,null,7,"س 7",null,null,null,null,null,null,null,null,null,null,null,null,null,null,null,null,null,null,null,null,null,null,null,null,null,null,null,null,null,null,null,0,0,0,0,0,0,0,0,null,null,null,14]
[null,null,8,"س 8",null,null,null,null,null,null,null,null,null,null,null,null,null,null,null,null,null,null,null,null,null,null,null,null,null,null,null,null,null,null,null,0,0,0,0,0,0,0,0,null,null,null,15]
[null,null,9,"س 9",null,null,null,null,null,null,null,null,null,null,null,null,null,null,null,null,null,null,null,null,null,null,null,null,null,null,null,null,null,null,null,0,0,0,0,0,0,0,0,null,null,null,16]
[null,null,10,"س 10",null,null,null,null,null,null,null,null,null,null,null,null,null,null,null,null,null,null,null,null,null,null,null,null,null,null,null,null,null,null,null,0,0,0,0,0,0,0,0,null,null,null,17]
[null,null,11,"س 11",null,null,null,null,null,null,null,null,null,null,null,null,null,null,null,null,null,null,null,null,null,null,null,null,null,null,null,null,null,null,null,0,0,0,0,0,0,0,0,null,null,null,18]
[null,null,12,"س 12",null,null,null,null,null,null,null,null,null,null,null,null,null,null,null,null,null,null,null,null,null,null,null,null,null,null,null,null,null,null,null,0,0,0,0,0,0,0,0,null,null,null,19]
[null,null,13,"س 13",null,null,null,null,null,null,null,null,null,null,null,null,null,null,null,null,null,null,null,null,null,null,null,null,null,null,null,null,null,null,null,0,0,0,0,0,0,0,0,null,null,null,20]
[null,null,14,"س 14",null,null,null,null,null,null,null,null,null,null,null,null,null,null,null,null,null,null,null,null,null,null,null,null,null,null,null,null,null,null,null,0,0,0,0,0,0,0,0,null,null,null,21]
[null,null,15,"س 15",null,null,null,null,null,null,null,null,null,null,null,null,null,null,null,null,null,null,null,null,null,null,null,null,null,null,null,null,null,null,null,0,0,0,0,0,0,0,0,null,null,null,22]
[null,null,16,"س 16",null,null,null,null,null,null,null,null,null,null,null,null,null,null,null,null,null,null,null,null,null,null,null,null,null,null,null,null,null,null,null,0,0,0,0,0,0,0,0,null,null,null,23]
[null,null,17,"س 17",null,null,null,null,null,null,null,null,null,null,null,null,null,null,null,null,null,null,null,null,null,null,null,null,null,null,null,null,null,null,null,0,0,0,0,0,0,0,0,null,null,null,24]
[null,null,18,"س 18",null,null,null,null,null,null,null,null,null,null,null,null,null,null,null,null,null,null,null,null,null,null,null,null,null,null,null,null,null,null,null,0,0,0,0,0,0,0,0,null,null,null,25]
[null,null,19,"س 19",null,null,null,null,null,null,null,null,null,null,null,null,null,null,null,null,null,null,null,null,null,null,null,null,null,null,null,null,null,null,null,0,0,0,0,0,0,0,0,null,null,null,26]
[null,null,20,"س 20",null,null,null,null,null,null,null,null,null,null,null,null,null,null,null,null,null,null,null,null,null,null,null,null,null,null,null,null,null,null,null,0,0,0,0,0,0,0,0,null,null,null,27]
[null,null,21,"س 21",null,null,null,null,null,null,null,null,null,null,null,null,null,null,null,null,null,null,null,null,null,null,null,null,null,null,null,null,null,null,null,0,0,0,0,0,0,0,0,null,null,null,28]
[null,null,22,"س 22",null,null,null,null,null,null,null,null,null,null,null,null,null,null,null,null,null,null,null,null,null,null,null,null,null,null,null,null,null,null,null,0,0,0,0,0,0,0,0,null,null,null,29]
[null,null,23,"س 23",null,null,null,null,null,null,null,null,null,null,null,null,null,null,null,null,null,null,null,null,null,null,null,null,null,null,null,null,null,null,null,0,0,0,0,0,0,0,0,null,null,null,30]
[null,null,24,"س 24",null,null,null,null,null,null,null,null,null,null,null,null,null,null,null,null,null,null,null,null,null,null,null,null,null,null,null,null,null,null,null,0,0,0,0,0,0,0,0,null,null,null,31]
[null,null,25,"س 25",null,null,null,null,null,null,null,null,null,null,null,null,null,null,null,null,null,null,null,null,null,null,null,null,null,null,null,null,null,null,null,0,0,0,0,0,0,0,0]
[null,null,26,"س 26",null,null,null,null,null,null,null,null,null,null,null,null,null,null,null,null,null,null,null,null,null,null,null,null,null,null,null,null,null,null,null,0,0,0,0,0,0,0,0]
[null,null,27,"س 27",null,null,null,null,null,null,null,null,null,null,null,null,null,null,null,null,null,null,null,null,null,null,null,null,null,null,null,null,null,null,null,0,0,0,0,0,0,0,0]
[null,null,28,"س 28",null,null,null,null,null,null,null,null,null,null,null,null,null,null,null,null,null,null,null,null,null,null,null,null,null,null,null,null,null,null,null,0,0,0,0,0,0,0,0]
[null,null,29,"س 29",null,null,null,null,null,null,null,null,null,null,null,null,null,null,null,null,null,null,null,null,null,null,null,null,null,null,null,null,null,null,null,0,0,0,0,0,0,0,0]
[null,null,30,"س 30",null,null,null,null,null,null,null,null,null,null,null,null,null,null,null,null,null,null,null,null,null,null,null,null,null,null,null,null,null,null,null,{"$f":"COUNTIF(E37:AI37,\"*\"&AJ$7&\"*\")","v":0},0,0,0,0,0,0,0]
[null,null,31,"س 31",null,null,null,null,null,null,null,null,null,null,null,null,null,null,null,null,null,null,null,null,null,null,null,null,null,null,null,null,null,null,null,{"$f":"COUNTIF(E38:AI38,\"*\"&AJ$7&\"*\")","v":0},0,0,0,0,0,0,0,null,null,null,null,"كانون الثاني"]
[null,null,32,"س 32",null,null,null,null,null,null,null,null,null,null,null,null,null,null,null,null,null,null,null,null,null,null,null,null,null,null,null,null,null,null,null,0,0,0,0,0,0,0,0,null,null,null,null,"شباط"]
[null,null,33,"س 33",null,null,null,null,null,null,null,null,null,null,null,null,null,null,null,null,null,null,null,null,null,null,null,null,null,null,null,null,null,null,null,0,0,0,{"$f":"COUNTIF(F40:AJ40,\"*\"&AM$7&\"*\")","v":0},{"$f":"COUNTIF(H40:AM40,\"*\"&AN$7&\"*\")","v":0},{"$f":"COUNTIF(H40:AM40,\"*\"&AO$7&\"*\")","v":0},0,0,null,null,null,null,"آذار"]
[null,null,34,"س 34",null,null,null,null,null,null,null,null,null,null,null,null,null,null,null,null,null,null,null,null,null,null,null,null,null,null,null,null,null,null,null,0,{"$f":"COUNTIF(E41:AI41,\"*\"&AK$7&\"*\")","v":0},0,0,0,0,0,0,null,null,null,null,"نيسان"]
[null,null,35,"س 35",null,null,null,null,null,null,null,null,null,null,null,null,null,null,null,null,null,null,null,null,null,null,null,null,null,null,null,null,null,null,null,0,0,0,0,0,0,0,0,null,null,null,null,"أيار"]
[null,null,36,"س 36",null,null,null,null,null,null,null,null,null,null,null,null,null,null,null,null,null,null,null,null,null,null,null,null,null,null,null,null,null,null,null,0,0,0,0,0,0,0,0,null,null,null,null,"حزيران"]
[null,null,37,"س 37",null,null,null,null,null,null,null,null,null,null,null,null,null,null,null,null,null,null,null,null,null,null,null,null,null,null,null,null,null,null,null,0,0,0,0,0,0,0,0,null,null,null,null,"تموز"]
[null,null,38,"س 38",null,null,null,null,null,null,null,null,null,null,null,null,null,null,null,null,null,null,null,null,null,null,null,null,null,null,null,null,null,null,null,0,0,0,0,0,0,0,0,null,null,null,null,"آب"]
[null,null,39,"س 39",null,null,null,null,null,null,null,null,null,null,null,null,null,null,null,null,null,null,null,null,null,null,null,null,null,null,null,null,null,null,null,0,0,0,0,0,0,0,0,null,null,null,null,"أيلول"]
[null,null,40,"س 40",null,null,null,null,null,null,null,null,null,null,null,null,null,null,null,null,null,null,null,null,null,null,null,null,null,null,null,null,null,null,null,0,0,0,0,0,0,0,0,null,null,null,null,"تشرين الأول"]
[null,null,41,"س 41",null,null,null,null,null,null,null,null,null,null,null,null,null,null,null,null,null,null,null,null,null,null,null,null,null,null,null,null,null,null,null,0,0,0,0,0,0,0,0,null,null,null,null,"تشرين الثاني"]
[null,null,42,"س 42",null,null,null,null,null,null,null,null,null,null,null,null,null,null,null,null,null,null,null,null,null,null,null,null,null,null,null,null,null,null,null,{"$f":"COUNTIF(E49:AI49,\"*\"&AJ$7&\"*\")","v":0},0,0,0,0,0,0,0,null,null,null,null,"كانون الأول"]
[null,null,43,"س 43",null,null,null,null,null,null,null,null,null,null,null,null,null,null,null,null,null,null,null,null,null,null,null,null,null,null,null,null,null,null,null,0,0,0,0,0,0,0,0]
[null,null,44,"س 44",null,null,null,null,null,null,null,null,null,null,null,null,null,null,null,null,null,null,null,null,null,null,null,null,null,null,null,null,null,null,null,0,0,0,0,0,0,0,0]
[null,null,45,"س 45",null,null,null,null,null,null,null,null,null,null,null,null,null,null,null,null,null,null,null,null,null,null,null,null,null,null,null,null,null,null,null,0,0,0,0,0,0,0,0]
[null,null,46,"س 46",null,null,null,null,null,null,null,null,null,null,null,null,null,null,null,null,null,null,null,null,null,null,null,null,null,null,null,null,null,null,null,0,0,0,0,0,0,0,0]
[null,null,47,"س 47",null,null,null,null,null,null,null,null,null,null,null,null,null,null,null,null,null,null,null,null,null,null,null,null,null,null,null,null,null,null,null,0,0,0,0,0,0,0,0]
[null,null,48,"س 48",null,null,null,null,null,null,null,null,null,null,null,null,null,null,null,null,null,null,null,null,null,null,null,null,null,null,null,null,null,null,null,0,0,0,0,0,0,0,0]
[null,null,49,"س 49",null,null,null,null,null,null,null,null,null,null,null,null,null,null,null,null,null,null,null,null,null,null,null,null,null,null,null,null,null,null,null,0,0,0,0,0,0,0,0]
[null,null,50,"س 50",null,null,null,null,null,null,null,null,null,null,null,null,null,null,null,null,null,null,null,null,null,null,null,null,null,null,null,null,null,null,null,0,0,0,0,0,0,0,0]
[null,null,51,"س 51",null,null,null,null,null,null,null,null,null,null,null,null,null,null,null,null,null,null,null,null,null,null,null,null,null,null,null,null,null,null,null,0,0,0,0,0,0,0,0]
[null,null,52,null,null,null,null,null,null,null,null,null,null,null,null,null,null,null,null,null,null,null,null,null,null,null,null,null,null,null,null,null,null,null,null,0,0,0,0,0,0,0,0]
[null,null,53,null,null,null,null,null,null,null,null,null,null,null,null,null,null,null,null,null,null,null,null,null,null,null,null,null,null,null,null,null,null,null,null,0,0,0,0,0,0,0,0]
[null,null,54,null,null,null,null,null,null,null,null,null,null,null,null,null,null,null,null,null,null,null,null,null,null,null,null,null,null,null,null,null,null,null,null,0,0,0,0,0,0,0,0]
[null,null,55,null,null,null,null,null,null,null,null,null,null,null,null,null,null,null,null,null,null,null,null,null,null,null,null,null,null,null,null,null,null,null,null,0,0,0,0,0,0,0,{"$f":"COUNTIF(J62:AO62,\"*\"&AQ$7&\"*\")","v":0}]
[null,null,56,null,null,null,null,null,null,null,null,null,null,null,null,null,null,null,null,null,null,null,null,null,null,null,null,null,null,null,null,null,null,null,null,0,0,0,0,0,0,0,0]
[null,null,57,null,null,null,null,null,null,null,null,null,null,null,null,null,null,null,null,null,null,null,null,null,null,null,null,null,null,null,null,null,null,null,null,0,0,0,0,0,0,0,0]
[null,null,58,null,null,null,null,null,null,null,null,null,null,null,null,null,null,null,null,null,null,null,null,null,null,null,null,null,null,null,null,null,null,null,null,0,0,0,0,0,0,0,0]
[null,null,59,null,null,null,null,null,null,null,null,null,null,null,null,null,null,null,null,null,null,null,null,null,null,null,null,null,null,null,null,null,null,null,null,0,0,0,0,0,0,{"$f":"COUNTIF(I66:AN66,\"*\"&AP$7&\"*\")","v":0}]
[null,null,60,null,null,null,null,null,null,null,null,null,null,null,null,null,null,null,null,null,null,null,null,null,null,null,null,null,null,null,null,null,null,null,null,0,0,0,0,0,0,0]
[null,null,61,null,null,null,null,null,null,null,null,null,null,null,null,null,null,null,null,null,null,null,null,null,null,null,null,null,null,null,null,null,null,null,null,{"$f":"COUNTIF(E68:AI68,\"*\"&AJ$7&\"*\")","v":0},0,0,null,0,{"$f":"COUNTIF(H68:AM68,\"*\"&AO$7&\"*\")","v":0}]
[null,null,62,null,null,null,null,null,null,null,null,null,null,null,null,null,null,null,null,null,null,null,null,null,null,null,null,null,null,null,null,null,null,null,null,0,0,0,null,0,{"$f":"COUNTIF(H69:AM69,\"*\"&AO$7&\"*\")","v":0}]
[null,null,63,null,null,null,null,null,null,null,null,null,null,null,null,null,null,null,null,null,null,null,null,null,null,null,null,null,null,null,null,null,null,null,null,0,0,0,null,0,{"$f":"COUNTIF(H70:AM70,\"*\"&AO$7&\"*\")","v":0}]
[null,null,64,null,null,null,null,null,null,null,null,null,null,null,null,null,null,null,null,null,null,null,null,null,null,null,null,null,null,null,null,null,null,null,null,0,0,0,null,0,{"$f":"COUNTIF(H71:AM71,\"*\"&AO$7&\"*\")","v":0}]
[null,null,null,null,null,null,null,null,null,null,null,null,null,null,null,null,null,null,null,null,null,null,null,null,null,null,null,null,null,null,null,null,null,null,null,0,0,0,null,{"$f":"COUNTIF(H72:AM72,\"*\"&AN$7&\"*\")","v":0},{"$f":"COUNTIF(H72:AM72,\"*\"&AO$7&\"*\")","v":0}]

{"sheet":"ورقة1","index":2,"n_rows":1,"n_cols":1,"rows_kept":1,"cut":false,"hidden":true,"merged":[]}
["اسماء المعلمين"]

{"sheet":"غياب شهري","index":3,"n_rows":96,"n_cols":5,"rows_kept":96,"cut":false,"hidden":false,"merged":[[0,0,0,9],[1,0,1,9],[2,0,2,9],[47,0,49,0],[47,1,49,1],[47,2,49,2],[47,3,49,3],[50,0,52,0],[50,1,52,1],[50,2,52,2],[50,3,52,3],[29,0,31,0],[29,1,31,1],[29,2,31,2],[29,3,31,3],[32,0,34,0],[32,1,34,1],[32,2,34,2],[32,3,34,3],[35,0,37,0],[35,1,37,1],[35,2,37,2],[35,3,37,3],[20,0,22,0],[26,0,28,0],[26,1,28,1],[26,2,28,2],[26,3,28,3],[53,0,55,0],[53,1,55,1],[53,2,55,2],[53,3,55,3],[38,0,40,0],[38,1,40,1],[38,2,40,2],[38,3,40,3],[41,0,43,0],[41,1,43,1],[41,2,43,2],[41,3,43,3],[44,0,46,0],[44,1,46,1],[44,2,46,2],[44,3,46,3],[17,2,19,2],[17,3,19,3],[20,1,22,1],[20,2,22,2],[20,3,22,3],[23,0,25,0],[23,1,25,1],[23,2,25,2],[23,3,25,3],[59,1,61,1],[62,1,64,1],[65,1,67,1],[68,1,70,1],[3,0,3,9],[4,4,4,9],[5,0,7,0],[5,1,7,1],[5,2,7,2],[5,3,7,3],[8,0,10,0],[8,1,10,1],[8,2,10,2],[8,3,10,3],[11,0,13,0],[11,1,13,1],[11,2,13,2],[11,3,13,3],[14,0,16,0],[14,1,16,1],[14,2,16,2],[14,3,16,3],[17,0,19,0],[17,1,19,1],[71,0,73,0],[71,2,73,2],[71,3,73,3],[74,0,76,0],[74,2,76,2],[74,3,76,3],[56,0,58,0],[56,2,58,2],[56,3,58,3],[59,0,61,0],[59,2,61,2],[59,3,61,3],[62,0,64,0],[62,2,64,2],[62,3,64,3],[65,0,67,0],[65,2,67,2],[65,3,67,3],[68,0,70,0],[68,2,70,2],[68,3,70,3],[71,1,73,1],[74,1,76,1],[56,1,58,1],[83,0,85,0],[83,2,85,2],[83,3,85,3],[86,0,88,0],[86,2,88,2],[86,3,88,3],[77,0,79,0],[77,2,79,2],[77,3,79,3],[80,0,82,0],[80,2,82,2],[80,3,82,3],[86,1,88,1],[77,1,79,1],[80,1,82,1],[83,1,85,1],[95,0,97,0],[95,2,97,2],[95,3,97,3],[89,0,91,0],[89,2,91,2],[89,3,91,3],[92,0,94,0],[92,2,94,2],[92,3,94,3],[89,1,91,1],[92,1,94,1],[95,1,97,1]]}
[]
[]
[{"$f":"\"كشف غياب المعلمين الشهري للعام 2021 / 2022 عن شهر \"&MONTH(B6)","v":"كشف غياب المعلمين الشهري للعام 2021 / 2022 عن شهر 5"}]
[]
["اليوم ","التاريخ ","عدد الغياب","عدد  الحضور","كشــــــــف بأسمـــاء المعلمين  الغــائبيــن "]
[{"$f":"كشف!E$6","v":"الأربعاء"},{"$f":"كشف!E$7","v":"2024-05-01"}]
[]
[]
[{"$f":"كشف!F$6","v":"الخميس"},{"$f":"B6+1","v":"2024-05-02"}]
[]
[]
[{"$f":"كشف!G$6","v":"الجمعة"},{"$f":"B9+1","v":"2024-05-03"}]
[]
[]
[{"$f":"كشف!H$6","v":"السبت"},{"$f":"B12+1","v":"2024-05-04"}]
[]
[]
[{"$f":"كشف!I$6","v":"الأحد"},{"$f":"B15+1","v":"2024-05-05"}]
[]
[]
[{"$f":"كشف!J$6","v":"الإثنين"},{"$f":"B18+1","v":"2024-05-06"}]
[]
[]
[{"$f":"كشف!K$6","v":"الثلاثاء"},{"$f":"B21+1","v":"2024-05-07"}]
[]
[]
[{"$f":"كشف!L$6","v":"الأربعاء"},{"$f":"B24+1","v":"2024-05-08"}]
[]
[]
[{"$f":"كشف!M$6","v":"الخميس"},{"$f":"B27+1","v":"2024-05-09"}]
[]
[]
[{"$f":"كشف!N$6","v":"الجمعة"},{"$f":"B30+1","v":"2024-05-10"}]
[]
[]
[{"$f":"كشف!O$6","v":"السبت"},{"$f":"B33+1","v":"2024-05-11"}]
[]
[]
[{"$f":"كشف!P$6","v":"الأحد"},{"$f":"B36+1","v":"2024-05-12"}]
[]
[]
[{"$f":"كشف!Q$6","v":"الإثنين"},{"$f":"B39+1","v":"2024-05-13"}]
[]
[]
[{"$f":"كشف!R$6","v":"الثلاثاء"},{"$f":"B42+1","v":"2024-05-14"}]
[]
[]
[{"$f":"كشف!S$6","v":"الأربعاء"},{"$f":"B45+1","v":"2024-05-15"}]
[]
[]
[{"$f":"كشف!T$6","v":"الخميس"},{"$f":"B48+1","v":"2024-05-16"}]
[]
[]
[{"$f":"كشف!U$6","v":"الجمعة"},{"$f":"B51+1","v":"2024-05-17"}]
[]
[]
[{"$f":"كشف!V$6","v":"السبت"},{"$f":"B54+1","v":"2024-05-18"}]
[]
[]
[{"$f":"كشف!W$6","v":"الأحد"},{"$f":"B57+1","v":"2024-05-19"}]
[]
[]
[{"$f":"كشف!X$6","v":"الإثنين"},{"$f":"B60+1","v":"2024-05-20"}]
[]
[]
[{"$f":"كشف!Y$6","v":"الثلاثاء"},{"$f":"B63+1","v":"2024-05-21"}]
[]
[]
[{"$f":"كشف!Z$6","v":"الأربعاء"},{"$f":"B66+1","v":"2024-05-22"}]
[]
[]
[{"$f":"كشف!AA$6","v":"الخميس"},{"$f":"B69+1","v":"2024-05-23"}]
[]
[]
[{"$f":"كشف!AB$6","v":"الجمعة"},{"$f":"B72+1","v":"2024-05-24"}]
[]
[]
[{"$f":"كشف!AC$6","v":"السبت"},{"$f":"B75+1","v":"2024-05-25"}]
[]
[]
[{"$f":"كشف!AD$6","v":"الأحد"},{"$f":"B78+1","v":"2024-05-26"}]
[]
[]
[{"$f":"كشف!AE$6","v":"الإثنين"},{"$f":"B81+1","v":"2024-05-27"}]
[]
[]
[{"$f":"كشف!AF$6","v":"الثلاثاء"},{"$f":"B84+1","v":"2024-05-28"}]
[]
[]
[{"$f":"كشف!AG$6","v":"الأربعاء"},{"$f":"B87+1","v":"2024-05-29"}]
[]
[]
[{"$f":"كشف!AH$6","v":"الخميس"},{"$f":"B90+1","v":"2024-05-30"}]
[]
[]
[{"$f":"كشف!AI$6","v":"الجمعة"},{"$f":"B93+1","v":"2024-05-31"}]